Workbook

Sheet прил 9
F1: Приложение № 9
F2: к решению Совета депутатов
F3: МО Тельмановское сельское поселение
E4: Тосненского района Ленинградской области
F5: от 15.12.2010 г № 160
B7: Распределение бюджетных ассигнований
B8: по разделам и подразделам, целевым статьям и видам расходов
B9: на плановый период 2012 и 2013 годов
I12: (тыс.руб.)
A13: № п/п | D13: раздел | E13: подраздел | F13: целевая статья | G13: вид расхода | I13: 2012 г. | R13: 2013 г.
C14: главный распорядитель | H14: классификация операций сектора государственного управления
B15: 1 | C15: 2 | D15: 3 | E15: 4 | F15: 5 | G15: 6 | H15: 7 | I15: 13
A16: 1 | B16: ОБЩЕГОСУДАРСТВЕННЫЕ ВОПРОСЫ | D16: 01 | E16: 00
C17: 008 | F17: 00000000 | H17: 000 | I17: =I142+I1105+I1102+I597 -> 9684.7 | J17: =J142+J1105+J1102+J597 -> 0 | K17: 0 | L17: 0 | M17: 0 | N17: 0 | O17: 0 | P17: 0 | Q17: 0 | R17: =R142+R1105+R1102+R597 -> 10395.3
B18: Руководство и управление в сфере установленных функций органов государственной власти субъектов Российской Федерации и органов местного самоуправления | D18: 01 | E18: 02 | F18: 0020000 | G18: 000 | H18: 000
B19: Высшее должностное лицо субъекта Российской Федерации | D19: 01 | E19: 02 | F19: 0020100 | G19: 000 | H19: 000
B20: Выполнение функций государственными органами | D20: 01 | E20: 02 | F20: 0020100 | G20: 012 | H20: 000
B21: РАСХОДЫ | D21: 01 | E21: 02 | F21: 0020100 | G21: 012 | H21: 200
B22: Оплата труда и начисления на выплаты по оплате труда | D22: 01 | E22: 02 | F22: 0020100 | G22: 012 | H22: 210
B23: Заработная плата | D23: 01 | E23: 02 | F23: 0020100 | G23: 012 | H23: 211
B24: Прочие выплаты | D24: 01 | E24: 02 | F24: 0020100 | G24: 012 | H24: 212
B25: Начисления на выплаты по оплате труда | D25: 01 | E25: 02 | F25: 0020100 | G25: 012 | H25: 213
B26: Социальное обеспечение | D26: 01 | E26: 02 | F26: 0020100 | G26: 012 | H26: 260
B27: Пособия по социальной помощи населению | D27: 01 | E27: 02 | F27: 0020100 | G27: 012 | H27: 262
B28: Глава муниципального образования | D28: 01 | E28: 02 | F28: 0020300 | G28: 000 | H28: 000
B29: Выполнение функций органами местного самоуправления | D29: 01 | E29: 02 | F29: 0020300 | G29: 500 | H29: 000
B30: *) Код главного распорядителя, распорядителя средств бюджета утверждается законодательными (представительными) органами субъектов Российской Федерации и представительными органами местного самоуправления
B31: РАСХОДЫ | D31: 01 | E31: 02 | F31: 0020300 | G31: 500 | H31: 200
B32: Оплата труда и начисления на выплаты по оплате труда | D32: 01 | E32: 02 | F32: 0020300 | G32: 500 | H32: 210
B33: Заработная плата | D33: 01 | E33: 02 | F33: 0020300 | G33: 500 | H33: 211
B34: Прочие выплаты | D34: 01 | E34: 02 | F34: 0020300 | G34: 500 | H34: 212
B35: Начисления на выплаты по оплате труда | D35: 01 | E35: 02 | F35: 0020300 | G35: 500 | H35: 213
B36: Социальное обеспечение | D36: 01 | E36: 02 | F36: 0020300 | G36: 500 | H36: 260
B37: Пособия по социальной помощи населению | D37: 01 | E37: 02 | F37: 0020300 | G37: 500 | H37: 262
B38: Центральный аппарат | D38: 01 | E38: 02 | F38: 0020400 | G38: 000 | H38: 000
B39: Выполнение функций государственными органами | D39: 01 | E39: 02 | F39: 0020400 | G39: 012 | H39: 000
B40: РАСХОДЫ | D40: 01 | E40: 02 | F40: 0020400 | G40: 012 | H40: 200
B41: Оплата труда и начисления на выплаты по оплате труда | D41: 01 | E41: 02 | F41: 0020400 | G41: 012 | H41: 210
B42: Заработная плата | D42: 01 | E42: 02 | F42: 0020400 | G42: 012 | H42: 211
B43: Прочие выплаты | D43: 01 | E43: 02 | F43: 0020400 | G43: 012 | H43: 212
B44: Начисления на выплаты по оплате труда | D44: 01 | E44: 02 | F44: 0020400 | G44: 012 | H44: 213
B45: Оплата работ, услуг | D45: 01 | E45: 02 | F45: 0020400 | G45: 012 | H45: 220
B46: Услуги связи | D46: 01 | E46: 02 | F46: 0020400 | G46: 012 | H46: 221
B47: Транспортные услуги | D47: 01 | E47: 02 | F47: 0020400 | G47: 012 | H47: 222
B48: Коммунальные услуги | D48: 01 | E48: 02 | F48: 0020400 | G48: 012 | H48: 223
B49: Арендная плата за пользование имуществом | D49: 01 | E49: 02 | F49: 0020400 | G49: 012 | H49: 224
B50: Работы, услуги по содержанию имущества | D50: 01 | E50: 02 | F50: 0020400 | G50: 012 | H50: 225
B51: Прочие работы, услуги | D51: 01 | E51: 02 | F51: 0020400 | G51: 012 | H51: 226
B52: Социальное обеспечение | D52: 01 | E52: 02 | F52: 0020400 | G52: 012 | H52: 260
B53: Пособия по социальной помощи населению | D53: 01 | E53: 02 | F53: 0020400 | G53: 012 | H53: 262
B54: Прочие расходы | D54: 01 | E54: 02 | F54: 0020400 | G54: 012 | H54: 290
B55: ПОСТУПЛЕНИЕ НЕФИНАНСОВЫХ АКТИВОВ | D55: 01 | E55: 02 | F55: 0020400 | G55: 012 | H55: 300
B56: Увеличение стоимости основных средств | D56: 01 | E56: 02 | F56: 0020400 | G56: 012 | H56: 310
B57: Увеличение стоимости нематериальных активов | D57: 01 | E57: 02 | F57: 0020400 | G57: 012 | H57: 320
B58: Увеличение стоимости материальных запасов | D58: 01 | E58: 02 | F58: 0020400 | G58: 012 | H58: 340
B59: Функционирование законодательных (представительных) органов государственной власти и представительных органов муниципальных образований | D59: 01 | E59: 03 | F59: 0000000 | G59: 000 | H59: 000
B60: Руководство и управление в сфере установленных функций органов государственной власти субъектов Российской Федерации и органов местного самоуправления | D60: 01 | E60: 03 | F60: 0020000 | G60: 000 | H60: 000
B61: Центральный аппарат | D61: 01 | E61: 03 | F61: 0020400 | G61: 000 | H61: 000
B62: Выполнение функций государственными органами | D62: 01 | E62: 03 | F62: 0020400 | G62: 012 | H62: 000
B63: РАСХОДЫ | D63: 01 | E63: 03 | F63: 0020400 | G63: 012 | H63: 200
B64: Оплата труда и начисления на выплаты по оплате труда | D64: 01 | E64: 03 | F64: 0020400 | G64: 012 | H64: 210
B65: Заработная плата | D65: 01 | E65: 03 | F65: 0020400 | G65: 012 | H65: 211
B66: Прочие выплаты | D66: 01 | E66: 03 | F66: 0020400 | G66: 012 | H66: 212
B67: Начисления на выплаты по оплате труда | D67: 01 | E67: 03 | F67: 0020400 | G67: 012 | H67: 213
B68: Оплата работ, услуг | D68: 01 | E68: 03 | F68: 0020400 | G68: 012 | H68: 220
B69: Услуги связи | D69: 01 | E69: 03 | F69: 0020400 | G69: 012 | H69: 221
B70: Транспортные услуги | D70: 01 | E70: 03 | F70: 0020400 | G70: 012 | H70: 222
B71: Коммунальные услуги | D71: 01 | E71: 03 | F71: 0020400 | G71: 012 | H71: 223
B72: Арендная плата за пользование имуществом | D72: 01 | E72: 03 | F72: 0020400 | G72: 012 | H72: 224
B73: Работы, услуги по содержанию имущества | D73: 01 | E73: 03 | F73: 0020400 | G73: 012 | H73: 225
B74: Прочие работы, услуги | D74: 01 | E74: 03 | F74: 0020400 | G74: 012 | H74: 226
B75: Социальное обеспечение | D75: 01 | E75: 03 | F75: 0020400 | G75: 012 | H75: 260
B76: Пособия по социальной помощи населению | D76: 01 | E76: 03 | F76: 0020400 | G76: 012 | H76: 262
B77: Прочие расходы | D77: 01 | E77: 03 | F77: 0020400 | G77: 012 | H77: 290
B78: ПОСТУПЛЕНИЕ НЕФИНАНСОВЫХ АКТИВОВ | D78: 01 | E78: 03 | F78: 0020400 | G78: 012 | H78: 300
B79: Увеличение стоимости основных средств | D79: 01 | E79: 03 | F79: 0020400 | G79: 012 | H79: 310
B80: Увеличение стоимости нематериальных активов | D80: 01 | E80: 03 | F80: 0020400 | G80: 012 | H80: 320
B81: Увеличение стоимости материальных запасов | D81: 01 | E81: 03 | F81: 0020400 | G81: 012 | H81: 340
B82: Выполнение функций органами местного самоуправления | D82: 01 | E82: 03 | F82: 0020400 | G82: 500 | H82: 000
B83: РАСХОДЫ | D83: 01 | E83: 03 | F83: 0020400 | G83: 500 | H83: 200
B84: Оплата труда и начисления на выплаты по оплате труда | D84: 01 | E84: 03 | F84: 0020400 | G84: 500 | H84: 210
B85: Заработная плата | D85: 01 | E85: 03 | F85: 0020400 | G85: 500 | H85: 211
B86: Прочие выплаты | D86: 01 | E86: 03 | F86: 0020400 | G86: 500 | H86: 212
B87: Начисления на выплаты по оплате труда | D87: 01 | E87: 03 | F87: 0020400 | G87: 500 | H87: 213
B88: Оплата работ, услуг | D88: 01 | E88: 03 | F88: 0020400 | G88: 500 | H88: 220
B89: Услуги связи | D89: 01 | E89: 03 | F89: 0020400 | G89: 500 | H89: 221
B90: Транспортные услуги | D90: 01 | E90: 03 | F90: 0020400 | G90: 500 | H90: 222
B91: Коммунальные услуги | D91: 01 | E91: 03 | F91: 0020400 | G91: 500 | H91: 223
B92: Арендная плата за пользование имуществом | D92: 01 | E92: 03 | F92: 0020400 | G92: 500 | H92: 224
B93: Работы, услуги по содержанию имущества | D93: 01 | E93: 03 | F93: 0020400 | G93: 500 | H93: 225
B94: Прочие работы, услуги | D94: 01 | E94: 03 | F94: 0020400 | G94: 500 | H94: 226
B95: Социальное обеспечение | D95: 01 | E95: 03 | F95: 0020400 | G95: 500 | H95: 260
B96: Пособия по социальной помощи населению | D96: 01 | E96: 03 | F96: 0020400 | G96: 500 | H96: 262
B97: Прочие расходы | D97: 01 | E97: 03 | F97: 0020400 | G97: 500 | H97: 290
B98: ПОСТУПЛЕНИЕ НЕФИНАНСОВЫХ АКТИВОВ | D98: 01 | E98: 03 | F98: 0020400 | G98: 500 | H98: 300
B99: Увеличение стоимости основных средств | D99: 01 | E99: 03 | F99: 0020400 | G99: 500 | H99: 310
B100: Увеличение стоимости нематериальных активов | D100: 01 | E100: 03 | F100: 0020400 | G100: 500 | H100: 320
B101: Увеличение стоимости материальных запасов | D101: 01 | E101: 03 | F101: 0020400 | G101: 500 | H101: 340
B102: Председатель законодательного (представительного) органа государственной власти субъекта Российской Федерации | D102: 01 | E102: 03 | F102: 0020900 | G102: 000 | H102: 000
B103: Выполнение функций государственными органами | D103: 01 | E103: 03 | F103: 0020900 | G103: 012 | H103: 000
B104: РАСХОДЫ | D104: 01 | E104: 03 | F104: 0020900 | G104: 012 | H104: 200
B105: Оплата труда и начисления на выплаты по оплате труда | D105: 01 | E105: 03 | F105: 0020900 | G105: 012 | H105: 210
B106: Заработная плата | D106: 01 | E106: 03 | F106: 0020900 | G106: 012 | H106: 211
B107: Прочие выплаты | D107: 01 | E107: 03 | F107: 0020900 | G107: 012 | H107: 212
B108: Начисления на выплаты по оплате труда | D108: 01 | E108: 03 | F108: 0020900 | G108: 012 | H108: 213
B109: Социальное обеспечение | D109: 01 | E109: 03 | F109: 0020900 | G109: 012 | H109: 260
B110: Пособия по социальной помощи населению | D110: 01 | E110: 03 | F110: 0020900 | G110: 012 | H110: 262
B111: Депутаты (члены) законодательного (представительного) органа государственной власти субъекта Российской Федерации | D111: 01 | E111: 03 | F111: 0021000 | G111: 000 | H111: 000
B112: Выполнение функций государственными органами | D112: 01 | E112: 03 | F112: 0021000 | G112: 012 | H112: 000
B113: РАСХОДЫ | D113: 01 | E113: 03 | F113: 0021000 | G113: 012 | H113: 200
B114: Оплата труда и начисления на выплаты по оплате труда | D114: 01 | E114: 03 | F114: 0021000 | G114: 012 | H114: 210
B115: Заработная плата | D115: 01 | E115: 03 | F115: 0021000 | G115: 012 | H115: 211
B116: Прочие выплаты | D116: 01 | E116: 03 | F116: 0021000 | G116: 012 | H116: 212
B117: Начисления на выплаты по оплате труда | D117: 01 | E117: 03 | F117: 0021000 | G117: 012 | H117: 213
B118: Социальное обеспечение | D118: 01 | E118: 03 | F118: 0021000 | G118: 012 | H118: 260
B119: Пособия по социальной помощи населению | D119: 01 | E119: 03 | F119: 0021000 | G119: 012 | H119: 262
B120: Председатель представительного органа муниципального образования | D120: 01 | E120: 03 | F120: 0021100 | G120: 000 | H120: 000
B121: Выполнение функций органами местного самоуправления | D121: 01 | E121: 03 | F121: 0021100 | G121: 500 | H121: 000
B122: РАСХОДЫ | D122: 01 | E122: 03 | F122: 0021100 | G122: 500 | H122: 200
B123: Оплата труда и начисления на выплаты по оплате труда | D123: 01 | E123: 03 | F123: 0021100 | G123: 500 | H123: 210
B124: Заработная плата | D124: 01 | E124: 03 | F124: 0021100 | G124: 500 | H124: 211
B125: Прочие выплаты | D125: 01 | E125: 03 | F125: 0021100 | G125: 500 | H125: 212
B126: Начисления на выплаты по оплате труда | D126: 01 | E126: 03 | F126: 0021100 | G126: 500 | H126: 213
B127: Социальное обеспечение | D127: 01 | E127: 03 | F127: 0021100 | G127: 500 | H127: 260
B128: Пособия по социальной помощи населению | D128: 01 | E128: 03 | F128: 0021100 | G128: 500 | H128: 262
B129: Депутаты представительного органа муниципального образования | D129: 01 | E129: 03 | F129: 0021200 | G129: 000 | H129: 000
B130: Выполнение функций органами местного самоуправления | D130: 01 | E130: 03 | F130: 0021200 | G130: 500 | H130: 000
B131: РАСХОДЫ | D131: 01 | E131: 03 | F131: 0021200 | G131: 500 | H131: 200
B132: Оплата труда и начисления на выплаты по оплате труда | D132: 01 | E132: 03 | F132: 0021200 | G132: 500 | H132: 210
B133: Заработная плата | D133: 01 | E133: 03 | F133: 0021200 | G133: 500 | H133: 211
B134: Прочие выплаты | D134: 01 | E134: 03 | F134: 0021200 | G134: 500 | H134: 212
B135: Начисления на выплаты по оплате труда | D135: 01 | E135: 03 | F135: 0021200 | G135: 500 | H135: 213
B136: Социальное обеспечение | D136: 01 | E136: 03 | F136: 0021200 | G136: 500 | H136: 260
B137: Пособия по социальной помощи населению | D137: 01 | E137: 03 | F137: 0021200 | G137: 500 | H137: 262
B138: Функционирование законодательных (представительных) органов государственной власти и представительных органов муниципальных образований | D138: 01 | E138: 03 | F138: 0000000 | I138: =I139 -> 0 | J138: =J139 -> 136 | K138: 137 | L138: 138 | M138: 139 | N138: 140 | O138: 141 | P138: 142 | Q138: 143 | R138: 0
B139: Руководство и управление в сфере установленных функций органов государственной власти субъектов Российской Федерации и органов местного самоуправления | D139: 01 | E139: 03 | F139: 0020000 | I139: =I140 -> 0 | J139: 136 | K139: 137 | L139: 138 | M139: 139 | N139: 140 | O139: 141 | P139: 142 | Q139: 143 | R139: 0
B140: Центральный аппарат | D140: 01 | E140: 03 | F140: 0020400 | I140: =I141 -> 0 | J140: 136 | K140: 137 | L140: 138 | M140: 139 | N140: 140 | O140: 141 | P140: 142 | Q140: 143 | R140: 0
B141: Выполнение функций органами местного самоуправления | D141: 01 | E141: 03 | F141: 0020400 | G141: 500 | J141: 136 | K141: 137 | L141: 138 | M141: 139 | N141: 140 | O141: 141 | P141: 142 | Q141: 143
B142: Функционирование Правительства Российской Федерации, высших исполнительных органов государственной власти субъектов Российской Федерации, местных администраций | C142: 008 | D142: 01 | E142: 04 | F142: 0000000 | H142: 000 | I142: =I143 -> 8577.5 | R142: =R143 -> 9263.6
B143: Руководство и управление в сфере установленных функций органов государственной власти субъектов Российской Федерации и органов местного самоуправления | C143: 008 | D143: 01 | E143: 04 | F143: 0020000 | H143: 000 | I143: =I144+I194 -> 8577.5 | R143: =R144+R194 -> 9263.6
B144: Центральный аппарат | C144: 008 | D144: 01 | E144: 04 | F144: 0020400 | H144: 000 | I144: =I165 -> 7619.3 | R144: =R165 -> 8228.8
B145: Выполнение функций государственными органами | D145: 01 | E145: 04 | F145: 0020400 | G145: 012 | H145: 000
B146: РАСХОДЫ | D146: 01 | E146: 04 | F146: 0020400 | G146: 012 | H146: 200
B147: Оплата труда и начисления на выплаты по оплате труда | D147: 01 | E147: 04 | F147: 0020400 | G147: 012 | H147: 210
B148: Заработная плата | D148: 01 | E148: 04 | F148: 0020400 | G148: 012 | H148: 211
B149: Прочие выплаты | D149: 01 | E149: 04 | F149: 0020400 | G149: 012 | H149: 212
B150: Начисления на выплаты по оплате труда | D150: 01 | E150: 04 | F150: 0020400 | G150: 012 | H150: 213
B151: Оплата работ, услуг | D151: 01 | E151: 04 | F151: 0020400 | G151: 012 | H151: 220
B152: Услуги связи | D152: 01 | E152: 04 | F152: 0020400 | G152: 012 | H152: 221
B153: Транспортные услуги | D153: 01 | E153: 04 | F153: 0020400 | G153: 012 | H153: 222
B154: Коммунальные услуги | D154: 01 | E154: 04 | F154: 0020400 | G154: 012 | H154: 223
B155: Арендная плата за пользование имуществом | D155: 01 | E155: 04 | F155: 0020400 | G155: 012 | H155: 224
B156: Работы, услуги по содержанию имущества | D156: 01 | E156: 04 | F156: 0020400 | G156: 012 | H156: 225
B157: Прочие работы, услуги | D157: 01 | E157: 04 | F157: 0020400 | G157: 012 | H157: 226
B158: Социальное обеспечение | D158: 01 | E158: 04 | F158: 0020400 | G158: 012 | H158: 260
B159: Пособия по социальной помощи населению | D159: 01 | E159: 04 | F159: 0020400 | G159: 012 | H159: 262
B160: Прочие расходы | D160: 01 | E160: 04 | F160: 0020400 | G160: 012 | H160: 290
B161: ПОСТУПЛЕНИЕ НЕФИНАНСОВЫХ АКТИВОВ | D161: 01 | E161: 04 | F161: 0020400 | G161: 012 | H161: 300
B162: Увеличение стоимости основных средств | D162: 01 | E162: 04 | F162: 0020400 | G162: 012 | H162: 310
B163: Увеличение стоимости нематериальных активов | D163: 01 | E163: 04 | F163: 0020400 | G163: 012 | H163: 320
B164: Увеличение стоимости материальных запасов | D164: 01 | E164: 04 | F164: 0020400 | G164: 012 | H164: 340
B165: Выполнение функций органами местного самоуправления | C165: 008 | D165: 01 | E165: 04 | F165: 0020400 | G165: 500 | H165: 000 | I165: 7619.3 | R165: 8228.8
B166: РАСХОДЫ | C166: 008 | D166: 01 | E166: 04 | F166: 0020400 | G166: 500 | H166: 200
B167: Оплата труда и начисления на выплаты по оплате труда | C167: 008 | D167: 01 | E167: 04 | F167: 0020400 | G167: 500 | H167: 210
B168: Заработная плата | C168: 008 | D168: 01 | E168: 04 | F168: 0020400 | G168: 500 | H168: 211
B169: Прочие выплаты | C169: 008 | D169: 01 | E169: 04 | F169: 0020400 | G169: 500 | H169: 212
B170: Начисления на выплаты по оплате труда | C170: 008 | D170: 01 | E170: 04 | F170: 0020400 | G170: 500 | H170: 213
B171: Оплата работ, услуг | C171: 008 | D171: 01 | E171: 04 | F171: 0020400 | G171: 500 | H171: 220
B172: Услуги связи | C172: 008 | D172: 01 | E172: 04 | F172: 0020400 | G172: 500 | H172: 221
B173: Транспортные услуги | C173: 008 | D173: 01 | E173: 04 | F173: 0020400 | G173: 500 | H173: 222
B174: Коммунальные услуги | C174: 008 | D174: 01 | E174: 04 | F174: 0020400 | G174: 500 | H174: 223
B175: Арендная плата за пользование имуществом | C175: 008 | D175: 01 | E175: 04 | F175: 0020400 | G175: 500 | H175: 224
B176: Работы, услуги по содержанию имущества | C176: 008 | D176: 01 | E176: 04 | F176: 0020400 | G176: 500 | H176: 225
B177: Прочие работы, услуги | C177: 008 | D177: 01 | E177: 04 | F177: 0020400 | G177: 500 | H177: 226
B178: Социальное обеспечение | C178: 008 | D178: 01 | E178: 04 | F178: 0020400 | G178: 500 | H178: 260
B179: Пособия по социальной помощи населению | C179: 008 | D179: 01 | E179: 04 | F179: 0020400 | G179: 500 | H179: 262
B180: Прочие расходы | C180: 008 | D180: 01 | E180: 04 | F180: 0020400 | G180: 500 | H180: 290
B181: ПОСТУПЛЕНИЕ НЕФИНАНСОВЫХ АКТИВОВ | C181: 008 | D181: 01 | E181: 04 | F181: 0020400 | G181: 500 | H181: 300
B182: Увеличение стоимости основных средств | C182: 008 | D182: 01 | E182: 04 | F182: 0020400 | G182: 500 | H182: 310
B183: Увеличение стоимости нематериальных активов | C183: 008 | D183: 01 | E183: 04 | F183: 0020400 | G183: 500 | H183: 320
B184: Увеличение стоимости материальных запасов | C184: 008 | D184: 01 | E184: 04 | F184: 0020400 | G184: 500 | H184: 340
B185: Высшее должностное лицо субъекта Российской Федерации (руководитель высшего исполнительного органа государственной власти субъекта Российской Федерации) и его заместители | C185: 008 | D185: 01 | E185: 04 | F185: 0020600 | G185: 000 | H185: 000
B186: Выполнение функций государственными органами | C186: 008 | D186: 01 | E186: 04 | F186: 0020600 | G186: 012 | H186: 000
B187: РАСХОДЫ | C187: 008 | D187: 01 | E187: 04 | F187: 0020600 | G187: 012 | H187: 200
B188: Оплата труда и начисления на выплаты по оплате труда | C188: 008 | D188: 01 | E188: 04 | F188: 0020600 | G188: 012 | H188: 210
B189: Заработная плата | C189: 008 | D189: 01 | E189: 04 | F189: 0020600 | G189: 012 | H189: 211
B190: Прочие выплаты | C190: 008 | D190: 01 | E190: 04 | F190: 0020600 | G190: 012 | H190: 212
B191: Начисления на выплаты по оплате труда | C191: 008 | D191: 01 | E191: 04 | F191: 0020600 | G191: 012 | H191: 213
B192: Социальное обеспечение | C192: 008 | D192: 01 | E192: 04 | F192: 0020600 | G192: 012 | H192: 260
B193: Пособия по социальной помощи населению | C193: 008 | D193: 01 | E193: 04 | F193: 0020600 | G193: 012 | H193: 262
B194: Глава местной администрации (исполнительно-распорядительного органа муниципального образования) | C194: 008 | D194: 01 | E194: 04 | F194: 0020800 | H194: 000 | I194: =I195 -> 958.2 | R194: =R195 -> 1034.8
B195: Выполнение функций органами местного самоуправления | C195: 008 | D195: 01 | E195: 04 | F195: 0020800 | G195: 500 | H195: 000 | I195: =I196 -> 958.2 | J195: =J196 -> 0 | K195: 0 | L195: 0 | M195: 0 | N195: 0 | O195: 0 | P195: 0 | Q195: 0 | R195: 1034.8
B196: РАСХОДЫ | C196: 008 | D196: 01 | E196: 04 | F196: 0020800 | G196: 500 | H196: 200 | I196: 958.2 | R196: 1034.8
B197: Оплата труда и начисления на выплаты по оплате труда | C197: 008 | D197: 01 | E197: 04 | F197: 0020800 | G197: 500 | H197: 210
B198: Заработная плата | C198: 008 | D198: 01 | E198: 04 | F198: 0020800 | G198: 500 | H198: 211
B199: Прочие выплаты | C199: 008 | D199: 01 | E199: 04 | F199: 0020800 | G199: 500 | H199: 212
B200: Начисления на выплаты по оплате труда | C200: 008 | D200: 01 | E200: 04 | F200: 0020800 | G200: 500 | H200: 213
B201: Социальное обеспечение | C201: 008 | D201: 01 | E201: 04 | F201: 0020800 | G201: 500 | H201: 260
B202: Пособия по социальной помощи населению | C202: 008 | D202: 01 | E202: 04 | F202: 0020800 | G202: 500 | H202: 262
B203: Мероприятия в рамках административной реформы | C203: 008 | D203: 01 | E203: 04 | F203: 0021300 | G203: 000 | H203: 000
... 4645 more rows

Sheet прил 11
F1: Приложение № 11
F2: к решению Совета депутатов
F3: МО Тельмановское сельское поселение
E4: Тосненского района Ленинградской области
F5: от 15.12.2010 г. № 160
B7: Ведомственная структура расходов бюджета
B8: МО Тельмановское сельское поселение Тосненского района Ленинградской области
B9: на плановый период 2012 и 2013 годов
I12: (тыс.руб.)
A13: № п/п | C13: главный распорядитель | D13: раздел | E13: подраздел | F13: целевая статья | G13: вид расхода | I13: 2012 год | R13: 2013 год
H14: классификация операций сектора государственного управления
B15: 1 | C15: 2 | D15: 3 | E15: 4 | F15: 5 | G15: 6 | H15: 7 | I15: 13
A16: 1 | B16: Администрация Тельмановского сельского поселения Тосненского района Ленинградской области | C16: 008 | I16: =I18+I1167+I1779+I2778+I2782+I1775 -> 24422.3 | J16: 2135.8 | K16: 1082.5 | L16: 1083.5 | M16: 1084.5 | N16: 12118.8 | O16: 1086.5 | P16: 1087.5 | Q16: 1088.5 | R16: 24097.2
B17: ОБЩЕГОСУДАРСТВЕННЫЕ ВОПРОСЫ
C18: 008 | D18: 01 | E18: 00 | F18: 0000000 | H18: 000 | I18: =I143+I1106+I1103+I598+I139 -> 9684.7 | J18: 1190.3 | K18: 137 | L18: 138 | M18: 139 | N18: 140 | O18: 141 | P18: 142 | Q18: 143 | R18: 10395.3
B19: Руководство и управление в сфере установленных функций органов государственной власти субъектов Российской Федерации и органов местного самоуправления | D19: 01 | E19: 02 | F19: 0020000 | G19: 000 | H19: 000
B20: Высшее должностное лицо субъекта Российской Федерации | D20: 01 | E20: 02 | F20: 0020100 | G20: 000 | H20: 000
B21: Выполнение функций государственными органами | D21: 01 | E21: 02 | F21: 0020100 | G21: 012 | H21: 000
B22: РАСХОДЫ | D22: 01 | E22: 02 | F22: 0020100 | G22: 012 | H22: 200
B23: Оплата труда и начисления на выплаты по оплате труда | D23: 01 | E23: 02 | F23: 0020100 | G23: 012 | H23: 210
B24: Заработная плата | D24: 01 | E24: 02 | F24: 0020100 | G24: 012 | H24: 211
B25: Прочие выплаты | D25: 01 | E25: 02 | F25: 0020100 | G25: 012 | H25: 212
B26: Начисления на выплаты по оплате труда | D26: 01 | E26: 02 | F26: 0020100 | G26: 012 | H26: 213
B27: Социальное обеспечение | D27: 01 | E27: 02 | F27: 0020100 | G27: 012 | H27: 260
B28: Пособия по социальной помощи населению | D28: 01 | E28: 02 | F28: 0020100 | G28: 012 | H28: 262
B29: Глава муниципального образования | D29: 01 | E29: 02 | F29: 0020300 | G29: 000 | H29: 000
B30: Выполнение функций органами местного самоуправления | D30: 01 | E30: 02 | F30: 0020300 | G30: 500 | H30: 000
B31: *) Код главного распорядителя, распорядителя средств бюджета утверждается законодательными (представительными) органами субъектов Российской Федерации и представительными органами местного самоуправления
B32: РАСХОДЫ | D32: 01 | E32: 02 | F32: 0020300 | G32: 500 | H32: 200
B33: Оплата труда и начисления на выплаты по оплате труда | D33: 01 | E33: 02 | F33: 0020300 | G33: 500 | H33: 210
B34: Заработная плата | D34: 01 | E34: 02 | F34: 0020300 | G34: 500 | H34: 211
B35: Прочие выплаты | D35: 01 | E35: 02 | F35: 0020300 | G35: 500 | H35: 212
B36: Начисления на выплаты по оплате труда | D36: 01 | E36: 02 | F36: 0020300 | G36: 500 | H36: 213
B37: Социальное обеспечение | D37: 01 | E37: 02 | F37: 0020300 | G37: 500 | H37: 260
B38: Пособия по социальной помощи населению | D38: 01 | E38: 02 | F38: 0020300 | G38: 500 | H38: 262
B39: Центральный аппарат | D39: 01 | E39: 02 | F39: 0020400 | G39: 000 | H39: 000
B40: Выполнение функций государственными органами | D40: 01 | E40: 02 | F40: 0020400 | G40: 012 | H40: 000
B41: РАСХОДЫ | D41: 01 | E41: 02 | F41: 0020400 | G41: 012 | H41: 200
B42: Оплата труда и начисления на выплаты по оплате труда | D42: 01 | E42: 02 | F42: 0020400 | G42: 012 | H42: 210
B43: Заработная плата | D43: 01 | E43: 02 | F43: 0020400 | G43: 012 | H43: 211
B44: Прочие выплаты | D44: 01 | E44: 02 | F44: 0020400 | G44: 012 | H44: 212
B45: Начисления на выплаты по оплате труда | D45: 01 | E45: 02 | F45: 0020400 | G45: 012 | H45: 213
B46: Оплата работ, услуг | D46: 01 | E46: 02 | F46: 0020400 | G46: 012 | H46: 220
B47: Услуги связи | D47: 01 | E47: 02 | F47: 0020400 | G47: 012 | H47: 221
B48: Транспортные услуги | D48: 01 | E48: 02 | F48: 0020400 | G48: 012 | H48: 222
B49: Коммунальные услуги | D49: 01 | E49: 02 | F49: 0020400 | G49: 012 | H49: 223
B50: Арендная плата за пользование имуществом | D50: 01 | E50: 02 | F50: 0020400 | G50: 012 | H50: 224
B51: Работы, услуги по содержанию имущества | D51: 01 | E51: 02 | F51: 0020400 | G51: 012 | H51: 225
B52: Прочие работы, услуги | D52: 01 | E52: 02 | F52: 0020400 | G52: 012 | H52: 226
B53: Социальное обеспечение | D53: 01 | E53: 02 | F53: 0020400 | G53: 012 | H53: 260
B54: Пособия по социальной помощи населению | D54: 01 | E54: 02 | F54: 0020400 | G54: 012 | H54: 262
B55: Прочие расходы | D55: 01 | E55: 02 | F55: 0020400 | G55: 012 | H55: 290
B56: ПОСТУПЛЕНИЕ НЕФИНАНСОВЫХ АКТИВОВ | D56: 01 | E56: 02 | F56: 0020400 | G56: 012 | H56: 300
B57: Увеличение стоимости основных средств | D57: 01 | E57: 02 | F57: 0020400 | G57: 012 | H57: 310
B58: Увеличение стоимости нематериальных активов | D58: 01 | E58: 02 | F58: 0020400 | G58: 012 | H58: 320
B59: Увеличение стоимости материальных запасов | D59: 01 | E59: 02 | F59: 0020400 | G59: 012 | H59: 340
B60: Функционирование законодательных (представительных) органов государственной власти и представительных органов муниципальных образований | D60: 01 | E60: 03 | F60: 0000000 | G60: 000 | H60: 000
B61: Руководство и управление в сфере установленных функций органов государственной власти субъектов Российской Федерации и органов местного самоуправления | D61: 01 | E61: 03 | F61: 0020000 | G61: 000 | H61: 000
B62: Центральный аппарат | D62: 01 | E62: 03 | F62: 0020400 | G62: 000 | H62: 000
B63: Выполнение функций государственными органами | D63: 01 | E63: 03 | F63: 0020400 | G63: 012 | H63: 000
B64: РАСХОДЫ | D64: 01 | E64: 03 | F64: 0020400 | G64: 012 | H64: 200
B65: Оплата труда и начисления на выплаты по оплате труда | D65: 01 | E65: 03 | F65: 0020400 | G65: 012 | H65: 210
B66: Заработная плата | D66: 01 | E66: 03 | F66: 0020400 | G66: 012 | H66: 211
B67: Прочие выплаты | D67: 01 | E67: 03 | F67: 0020400 | G67: 012 | H67: 212
B68: Начисления на выплаты по оплате труда | D68: 01 | E68: 03 | F68: 0020400 | G68: 012 | H68: 213
B69: Оплата работ, услуг | D69: 01 | E69: 03 | F69: 0020400 | G69: 012 | H69: 220
B70: Услуги связи | D70: 01 | E70: 03 | F70: 0020400 | G70: 012 | H70: 221
B71: Транспортные услуги | D71: 01 | E71: 03 | F71: 0020400 | G71: 012 | H71: 222
B72: Коммунальные услуги | D72: 01 | E72: 03 | F72: 0020400 | G72: 012 | H72: 223
B73: Арендная плата за пользование имуществом | D73: 01 | E73: 03 | F73: 0020400 | G73: 012 | H73: 224
B74: Работы, услуги по содержанию имущества | D74: 01 | E74: 03 | F74: 0020400 | G74: 012 | H74: 225
B75: Прочие работы, услуги | D75: 01 | E75: 03 | F75: 0020400 | G75: 012 | H75: 226
B76: Социальное обеспечение | D76: 01 | E76: 03 | F76: 0020400 | G76: 012 | H76: 260
B77: Пособия по социальной помощи населению | D77: 01 | E77: 03 | F77: 0020400 | G77: 012 | H77: 262
B78: Прочие расходы | D78: 01 | E78: 03 | F78: 0020400 | G78: 012 | H78: 290
B79: ПОСТУПЛЕНИЕ НЕФИНАНСОВЫХ АКТИВОВ | D79: 01 | E79: 03 | F79: 0020400 | G79: 012 | H79: 300
B80: Увеличение стоимости основных средств | D80: 01 | E80: 03 | F80: 0020400 | G80: 012 | H80: 310
B81: Увеличение стоимости нематериальных активов | D81: 01 | E81: 03 | F81: 0020400 | G81: 012 | H81: 320
B82: Увеличение стоимости материальных запасов | D82: 01 | E82: 03 | F82: 0020400 | G82: 012 | H82: 340
B83: Выполнение функций органами местного самоуправления | D83: 01 | E83: 03 | F83: 0020400 | G83: 500 | H83: 000
B84: РАСХОДЫ | D84: 01 | E84: 03 | F84: 0020400 | G84: 500 | H84: 200
B85: Оплата труда и начисления на выплаты по оплате труда | D85: 01 | E85: 03 | F85: 0020400 | G85: 500 | H85: 210
B86: Заработная плата | D86: 01 | E86: 03 | F86: 0020400 | G86: 500 | H86: 211
B87: Прочие выплаты | D87: 01 | E87: 03 | F87: 0020400 | G87: 500 | H87: 212
B88: Начисления на выплаты по оплате труда | D88: 01 | E88: 03 | F88: 0020400 | G88: 500 | H88: 213
B89: Оплата работ, услуг | D89: 01 | E89: 03 | F89: 0020400 | G89: 500 | H89: 220
B90: Услуги связи | D90: 01 | E90: 03 | F90: 0020400 | G90: 500 | H90: 221
B91: Транспортные услуги | D91: 01 | E91: 03 | F91: 0020400 | G91: 500 | H91: 222
B92: Коммунальные услуги | D92: 01 | E92: 03 | F92: 0020400 | G92: 500 | H92: 223
B93: Арендная плата за пользование имуществом | D93: 01 | E93: 03 | F93: 0020400 | G93: 500 | H93: 224
B94: Работы, услуги по содержанию имущества | D94: 01 | E94: 03 | F94: 0020400 | G94: 500 | H94: 225
B95: Прочие работы, услуги | D95: 01 | E95: 03 | F95: 0020400 | G95: 500 | H95: 226
B96: Социальное обеспечение | D96: 01 | E96: 03 | F96: 0020400 | G96: 500 | H96: 260
B97: Пособия по социальной помощи населению | D97: 01 | E97: 03 | F97: 0020400 | G97: 500 | H97: 262
B98: Прочие расходы | D98: 01 | E98: 03 | F98: 0020400 | G98: 500 | H98: 290
B99: ПОСТУПЛЕНИЕ НЕФИНАНСОВЫХ АКТИВОВ | D99: 01 | E99: 03 | F99: 0020400 | G99: 500 | H99: 300
B100: Увеличение стоимости основных средств | D100: 01 | E100: 03 | F100: 0020400 | G100: 500 | H100: 310
B101: Увеличение стоимости нематериальных активов | D101: 01 | E101: 03 | F101: 0020400 | G101: 500 | H101: 320
B102: Увеличение стоимости материальных запасов | D102: 01 | E102: 03 | F102: 0020400 | G102: 500 | H102: 340
B103: Председатель законодательного (представительного) органа государственной власти субъекта Российской Федерации | D103: 01 | E103: 03 | F103: 0020900 | G103: 000 | H103: 000
B104: Выполнение функций государственными органами | D104: 01 | E104: 03 | F104: 0020900 | G104: 012 | H104: 000
B105: РАСХОДЫ | D105: 01 | E105: 03 | F105: 0020900 | G105: 012 | H105: 200
B106: Оплата труда и начисления на выплаты по оплате труда | D106: 01 | E106: 03 | F106: 0020900 | G106: 012 | H106: 210
B107: Заработная плата | D107: 01 | E107: 03 | F107: 0020900 | G107: 012 | H107: 211
B108: Прочие выплаты | D108: 01 | E108: 03 | F108: 0020900 | G108: 012 | H108: 212
B109: Начисления на выплаты по оплате труда | D109: 01 | E109: 03 | F109: 0020900 | G109: 012 | H109: 213
B110: Социальное обеспечение | D110: 01 | E110: 03 | F110: 0020900 | G110: 012 | H110: 260
B111: Пособия по социальной помощи населению | D111: 01 | E111: 03 | F111: 0020900 | G111: 012 | H111: 262
B112: Депутаты (члены) законодательного (представительного) органа государственной власти субъекта Российской Федерации | D112: 01 | E112: 03 | F112: 0021000 | G112: 000 | H112: 000
B113: Выполнение функций государственными органами | D113: 01 | E113: 03 | F113: 0021000 | G113: 012 | H113: 000
B114: РАСХОДЫ | D114: 01 | E114: 03 | F114: 0021000 | G114: 012 | H114: 200
B115: Оплата труда и начисления на выплаты по оплате труда | D115: 01 | E115: 03 | F115: 0021000 | G115: 012 | H115: 210
B116: Заработная плата | D116: 01 | E116: 03 | F116: 0021000 | G116: 012 | H116: 211
B117: Прочие выплаты | D117: 01 | E117: 03 | F117: 0021000 | G117: 012 | H117: 212
B118: Начисления на выплаты по оплате труда | D118: 01 | E118: 03 | F118: 0021000 | G118: 012 | H118: 213
B119: Социальное обеспечение | D119: 01 | E119: 03 | F119: 0021000 | G119: 012 | H119: 260
B120: Пособия по социальной помощи населению | D120: 01 | E120: 03 | F120: 0021000 | G120: 012 | H120: 262
B121: Председатель представительного органа муниципального образования | D121: 01 | E121: 03 | F121: 0021100 | G121: 000 | H121: 000
B122: Выполнение функций органами местного самоуправления | D122: 01 | E122: 03 | F122: 0021100 | G122: 500 | H122: 000
B123: РАСХОДЫ | D123: 01 | E123: 03 | F123: 0021100 | G123: 500 | H123: 200
B124: Оплата труда и начисления на выплаты по оплате труда | D124: 01 | E124: 03 | F124: 0021100 | G124: 500 | H124: 210
B125: Заработная плата | D125: 01 | E125: 03 | F125: 0021100 | G125: 500 | H125: 211
B126: Прочие выплаты | D126: 01 | E126: 03 | F126: 0021100 | G126: 500 | H126: 212
B127: Начисления на выплаты по оплате труда | D127: 01 | E127: 03 | F127: 0021100 | G127: 500 | H127: 213
B128: Социальное обеспечение | D128: 01 | E128: 03 | F128: 0021100 | G128: 500 | H128: 260
B129: Пособия по социальной помощи населению | D129: 01 | E129: 03 | F129: 0021100 | G129: 500 | H129: 262
B130: Депутаты представительного органа муниципального образования | D130: 01 | E130: 03 | F130: 0021200 | G130: 000 | H130: 000
B131: Выполнение функций органами местного самоуправления | D131: 01 | E131: 03 | F131: 0021200 | G131: 500 | H131: 000
B132: РАСХОДЫ | D132: 01 | E132: 03 | F132: 0021200 | G132: 500 | H132: 200
B133: Оплата труда и начисления на выплаты по оплате труда | D133: 01 | E133: 03 | F133: 0021200 | G133: 500 | H133: 210
B134: Заработная плата | D134: 01 | E134: 03 | F134: 0021200 | G134: 500 | H134: 211
B135: Прочие выплаты | D135: 01 | E135: 03 | F135: 0021200 | G135: 500 | H135: 212
B136: Начисления на выплаты по оплате труда | D136: 01 | E136: 03 | F136: 0021200 | G136: 500 | H136: 213
B137: Социальное обеспечение | D137: 01 | E137: 03 | F137: 0021200 | G137: 500 | H137: 260
B138: Пособия по социальной помощи населению | D138: 01 | E138: 03 | F138: 0021200 | G138: 500 | H138: 262
B139: Функционирование законодательных (представительных) органов государственной власти и представительных органов муниципальных образований | D139: 01 | E139: 03 | F139: 0000000 | I139: =I140 -> 0 | J139: =J140 -> 136 | K139: 137 | L139: 138 | M139: 139 | N139: 140 | O139: 141 | P139: 142 | Q139: 143 | R139: 0
B140: Руководство и управление в сфере установленных функций органов государственной власти субъектов Российской Федерации и органов местного самоуправления | D140: 01 | E140: 03 | F140: 0020000 | I140: =I141 -> 0 | J140: 136 | K140: 137 | L140: 138 | M140: 139 | N140: 140 | O140: 141 | P140: 142 | Q140: 143 | R140: 0
B141: Центральный аппарат | D141: 01 | E141: 03 | F141: 0020400 | I141: =I142 -> 0 | J141: 136 | K141: 137 | L141: 138 | M141: 139 | N141: 140 | O141: 141 | P141: 142 | Q141: 143 | R141: 0
B142: Выполнение функций органами местного самоуправления | D142: 01 | E142: 03 | F142: 0020400 | G142: 500 | J142: 136 | K142: 137 | L142: 138 | M142: 139 | N142: 140 | O142: 141 | P142: 142 | Q142: 143
B143: Функционирование Правительства Российской Федерации, высших исполнительных органов государственной власти субъектов Российской Федерации, местных администраций | D143: 01 | E143: 04 | F143: 0000000 | H143: 000 | I143: 8577,5 | R143: 9263,6
B144: Руководство и управление в сфере установленных функций органов государственной власти субъектов Российской Федерации и органов местного самоуправления | D144: 01 | E144: 04 | F144: 0020000 | H144: 000 | I144: =I145+I195 -> 8577.5 | R144: =R145+R195 -> 9263.6
B145: Центральный аппарат | D145: 01 | E145: 04 | F145: 0020400 | H145: 000 | I145: =I166 -> 7619.3 | R145: =R166 -> 8228.8
B146: Выполнение функций государственными органами | D146: 0100 | E146: 0104 | F146: 0020400 | G146: 012 | H146: 000
B147: РАСХОДЫ | D147: 0100 | E147: 0104 | F147: 0020400 | G147: 012 | H147: 200
B148: Оплата труда и начисления на выплаты по оплате труда | D148: 0100 | E148: 0104 | F148: 0020400 | G148: 012 | H148: 210
B149: Заработная плата | D149: 0100 | E149: 0104 | F149: 0020400 | G149: 012 | H149: 211
B150: Прочие выплаты | D150: 0100 | E150: 0104 | F150: 0020400 | G150: 012 | H150: 212
B151: Начисления на выплаты по оплате труда | D151: 0100 | E151: 0104 | F151: 0020400 | G151: 012 | H151: 213
B152: Оплата работ, услуг | D152: 0100 | E152: 0104 | F152: 0020400 | G152: 012 | H152: 220
B153: Услуги связи | D153: 0100 | E153: 0104 | F153: 0020400 | G153: 012 | H153: 221
B154: Транспортные услуги | D154: 0100 | E154: 0104 | F154: 0020400 | G154: 012 | H154: 222
B155: Коммунальные услуги | D155: 0100 | E155: 0104 | F155: 0020400 | G155: 012 | H155: 223
B156: Арендная плата за пользование имуществом | D156: 0100 | E156: 0104 | F156: 0020400 | G156: 012 | H156: 224
B157: Работы, услуги по содержанию имущества | D157: 0100 | E157: 0104 | F157: 0020400 | G157: 012 | H157: 225
B158: Прочие работы, услуги | D158: 0100 | E158: 0104 | F158: 0020400 | G158: 012 | H158: 226
B159: Социальное обеспечение | D159: 0100 | E159: 0104 | F159: 0020400 | G159: 012 | H159: 260
B160: Пособия по социальной помощи населению | D160: 0100 | E160: 0104 | F160: 0020400 | G160: 012 | H160: 262
B161: Прочие расходы | D161: 0100 | E161: 0104 | F161: 0020400 | G161: 012 | H161: 290
B162: ПОСТУПЛЕНИЕ НЕФИНАНСОВЫХ АКТИВОВ | D162: 0100 | E162: 0104 | F162: 0020400 | G162: 012 | H162: 300
B163: Увеличение стоимости основных средств | D163: 0100 | E163: 0104 | F163: 0020400 | G163: 012 | H163: 310
B164: Увеличение стоимости нематериальных активов | D164: 0100 | E164: 0104 | F164: 0020400 | G164: 012 | H164: 320
B165: Увеличение стоимости материальных запасов | D165: 0100 | E165: 0104 | F165: 0020400 | G165: 012 | H165: 340
B166: Выполнение функций органами местного самоуправления | D166: 01 | E166: 04 | F166: 0020400 | G166: 500 | H166: 000 | I166: 7619.3 | R166: 8228.8
B167: РАСХОДЫ | D167: 0100 | E167: 0104 | F167: 0020400 | G167: 500 | H167: 200
B168: Оплата труда и начисления на выплаты по оплате труда | D168: 0100 | E168: 0104 | F168: 0020400 | G168: 500 | H168: 210
B169: Заработная плата | D169: 0100 | E169: 0104 | F169: 0020400 | G169: 500 | H169: 211
B170: Прочие выплаты | D170: 0100 | E170: 0104 | F170: 0020400 | G170: 500 | H170: 212
B171: Начисления на выплаты по оплате труда | D171: 0100 | E171: 0104 | F171: 0020400 | G171: 500 | H171: 213
B172: Оплата работ, услуг | D172: 0100 | E172: 0104 | F172: 0020400 | G172: 500 | H172: 220
B173: Услуги связи | D173: 0100 | E173: 0104 | F173: 0020400 | G173: 500 | H173: 221
B174: Транспортные услуги | D174: 0100 | E174: 0104 | F174: 0020400 | G174: 500 | H174: 222
B175: Коммунальные услуги | D175: 0100 | E175: 0104 | F175: 0020400 | G175: 500 | H175: 223
B176: Арендная плата за пользование имуществом | D176: 0100 | E176: 0104 | F176: 0020400 | G176: 500 | H176: 224
B177: Работы, услуги по содержанию имущества | D177: 0100 | E177: 0104 | F177: 0020400 | G177: 500 | H177: 225
B178: Прочие работы, услуги | D178: 0100 | E178: 0104 | F178: 0020400 | G178: 500 | H178: 226
B179: Социальное обеспечение | D179: 0100 | E179: 0104 | F179: 0020400 | G179: 500 | H179: 260
B180: Пособия по социальной помощи населению | D180: 0100 | E180: 0104 | F180: 0020400 | G180: 500 | H180: 262
B181: Прочие расходы | D181: 0100 | E181: 0104 | F181: 0020400 | G181: 500 | H181: 290
B182: ПОСТУПЛЕНИЕ НЕФИНАНСОВЫХ АКТИВОВ | D182: 0100 | E182: 0104 | F182: 0020400 | G182: 500 | H182: 300
B183: Увеличение стоимости основных средств | D183: 0100 | E183: 0104 | F183: 0020400 | G183: 500 | H183: 310
B184: Увеличение стоимости нематериальных активов | D184: 0100 | E184: 0104 | F184: 0020400 | G184: 500 | H184: 320
B185: Увеличение стоимости материальных запасов | D185: 0100 | E185: 0104 | F185: 0020400 | G185: 500 | H185: 340
B186: Высшее должностное лицо субъекта Российской Федерации (руководитель высшего исполнительного органа государственной власти субъекта Российской Федерации) и его заместители | D186: 0100 | E186: 0104 | F186: 0020600 | G186: 000 | H186: 000
B187: Выполнение функций государственными органами | D187: 0100 | E187: 0104 | F187: 0020600 | G187: 012 | H187: 000
B188: РАСХОДЫ | D188: 0100 | E188: 0104 | F188: 0020600 | G188: 012 | H188: 200
B189: Оплата труда и начисления на выплаты по оплате труда | D189: 0100 | E189: 0104 | F189: 0020600 | G189: 012 | H189: 210
B190: Заработная плата | D190: 0100 | E190: 0104 | F190: 0020600 | G190: 012 | H190: 211
B191: Прочие выплаты | D191: 0100 | E191: 0104 | F191: 0020600 | G191: 012 | H191: 212
B192: Начисления на выплаты по оплате труда | D192: 0100 | E192: 0104 | F192: 0020600 | G192: 012 | H192: 213
B193: Социальное обеспечение | D193: 0100 | E193: 0104 | F193: 0020600 | G193: 012 | H193: 260
B194: Пособия по социальной помощи населению | D194: 0100 | E194: 0104 | F194: 0020600 | G194: 012 | H194: 262
B195: Глава местной администрации (исполнительно-распорядительного органа муниципального образования) | D195: 01 | E195: 04 | F195: 0020800 | H195: 000 | I195: =I196 -> 958.2 | R195: =R196 -> 1034.8
B196: Выполнение функций органами местного самоуправления | D196: 01 | E196: 04 | F196: 0020800 | G196: 500 | H196: 000 | I196: 958.2 | R196: 1034.8
B197: РАСХОДЫ | D197: 01 | E197: 04 | F197: 0020800 | G197: 500 | H197: 200 | I197: 603.9 | R197: 603.9
B198: Оплата труда и начисления на выплаты по оплате труда | D198: 01 | E198: 04 | F198: 0020800 | G198: 500 | H198: 210
B199: Заработная плата | D199: 01 | E199: 04 | F199: 0020800 | G199: 500 | H199: 211
B200: Прочие выплаты | D200: 01 | E200: 04 | F200: 0020800 | G200: 500 | H200: 212
B201: Начисления на выплаты по оплате труда | D201: 01 | E201: 04 | F201: 0020800 | G201: 500 | H201: 213
B202: Социальное обеспечение | D202: 01 | E202: 04 | F202: 0020800 | G202: 500 | H202: 260
B203: Пособия по социальной помощи населению | D203: 01 | E203: 04 | F203: 0020800 | G203: 500 | H203: 262
... 4670 more rows
